[Event "*** SCC Grand Prix: Titled Tuesday Blitz"]
[Site "Chess.com"]
[Date "2020.07.14"]
[Round "4"]
[White "timator"]
[Black "Willychess95"]
[Result "1/2-1/2"]
[WhiteElo "2597"]
[BlackElo "2546"]
[TimeControl "180+1"]
[EndTime "10:40:23 PDT"]
[Termination "Game drawn - insufficient material"]

1. d4 {[%clk 0:02:27.9]} 1... Nf6 {[%clk 0:02:59.4]} 2. Nf3 {[%clk 0:02:28.8]}
2... e6 {[%clk 0:02:58.9]} 3. c4 {[%clk 0:02:28.2]} 3... Bb4+ {[%clk 0:02:58.5]}
4. Bd2 {[%clk 0:02:28.7]} 4... a5 {[%clk 0:02:58.2]} 5. a3 {[%clk 0:02:27.6]}
5... Bxd2+ {[%clk 0:02:55.8]} 6. Nbxd2 {[%clk 0:02:28.5]} 6... d5 {[%clk
0:02:56.1]} 7. Qc2 {[%clk 0:02:29]} 7... O-O {[%clk 0:02:55.9]} 8. e4 {[%clk
0:02:29.3]} 8... dxe4 {[%clk 0:02:54.1]} 9. Nxe4 {[%clk 0:02:30.2]} 9... Nbd7
{[%clk 0:02:53.9]} 10. Bd3 {[%clk 0:02:27.8]} 10... h6 {[%clk 0:02:54]} 11. O-O
{[%clk 0:02:27.2]} 11... b6 {[%clk 0:02:53.2]} 12. Nxf6+ {[%clk 0:01:49.5]}
12... Nxf6 {[%clk 0:02:54.1]} 13. Be4 {[%clk 0:01:49.8]} 13... Nxe4 {[%clk
0:02:46.8]} 14. Qxe4 {[%clk 0:01:50.7]} 14... Rb8 {[%clk 0:02:45.3]} 15. Rfd1
{[%clk 0:01:49.1]} 15... Bb7 {[%clk 0:02:45.1]} 16. Qf4 {[%clk 0:01:47.9]} 16...
Qf6 {[%clk 0:02:41.8]} 17. Qxf6 {[%clk 0:01:37.3]} 17... gxf6 {[%clk 0:02:42.7]}
18. d5 {[%clk 0:01:34.8]} 18... Rfd8 {[%clk 0:02:36.2]} 19. dxe6 {[%clk
0:01:32.1]} 19... fxe6 {[%clk 0:02:37.1]} 20. Nd4 {[%clk 0:01:31.9]} 20... Kf7
{[%clk 0:02:30.9]} 21. Nb5 {[%clk 0:01:30.1]} 21... Ba6 {[%clk 0:02:25.7]} 22.
f3 {[%clk 0:01:18.2]} 22... Ke7 {[%clk 0:02:20.5]} 23. Kf2 {[%clk 0:01:04]}
23... c6 {[%clk 0:02:02.2]} 24. Nd4 {[%clk 0:00:45.9]} 24... Rd6 {[%clk
0:01:54]} 25. Rd2 {[%clk 0:00:20]} 25... Bxc4 {[%clk 0:01:38.1]} 26. Rc1 {[%clk
0:00:20]} 26... Bd5 {[%clk 0:01:37.6]} 27. b4 {[%clk 0:00:20.1]} 27... axb4
{[%clk 0:01:36.9]} 28. axb4 {[%clk 0:00:21]} 28... Rbd8 {[%clk 0:01:34.3]} 29.
Rcd1 {[%clk 0:00:19.4]} 29... c5 {[%clk 0:01:31.8]} 30. bxc5 {[%clk 0:00:17.8]}
30... bxc5 {[%clk 0:01:32.7]} 31. Ne2 {[%clk 0:00:18.4]} 31... e5 {[%clk
0:01:30.5]} 32. Nc3 {[%clk 0:00:18]} 32... Bc6 {[%clk 0:01:29.5]} 33. Ke3 {[%clk
0:00:17.8]} 33... Rxd2 {[%clk 0:01:28.6]} 34. Rxd2 {[%clk 0:00:18.7]} 34... Rxd2
{[%clk 0:01:29]} 35. Kxd2 {[%clk 0:00:19]} 35... Kd6 {[%clk 0:01:29]} 36. Kd3
{[%clk 0:00:17.5]} 36... f5 {[%clk 0:01:26]} 37. Ke3 {[%clk 0:00:17]} 37... c4
{[%clk 0:01:20.5]} 38. h4 {[%clk 0:00:16.1]} 38... Kc5 {[%clk 0:01:18.6]} 39.
Ne2 {[%clk 0:00:14.3]} 39... Kb4 {[%clk 0:01:15.2]} 40. Kd2 {[%clk 0:00:14.5]}
40... Kb3 {[%clk 0:01:11.6]} 41. Nc3 {[%clk 0:00:12.1]} 41... Kb2 {[%clk
0:00:58.8]} 42. g4 {[%clk 0:00:12]} 42... e4 {[%clk 0:00:49.6]} 43. gxf5 {[%clk
0:00:07.7]} 43... exf3 {[%clk 0:00:49.5]} 44. f6 {[%clk 0:00:08.1]} 44... f2
{[%clk 0:00:48.8]} 45. Nd1+ {[%clk 0:00:07]} 45... Kb3 {[%clk 0:00:42.3]} 46.
Nxf2 {[%clk 0:00:07.9]} 46... Bd5 {[%clk 0:00:42.3]} 47. Nd1 {[%clk 0:00:06.2]}
47... Bf7 {[%clk 0:00:40.5]} 48. Nc3 {[%clk 0:00:07.1]} 48... Kb4 {[%clk
0:00:39.6]} 49. Ne4 {[%clk 0:00:07.5]} 49... Bg8 {[%clk 0:00:33.5]} 50. Nd6
{[%clk 0:00:06.4]} 50... Kc5 {[%clk 0:00:33.7]} 51. f7 {[%clk 0:00:05.8]} 51...
Bxf7 {[%clk 0:00:34]} 52. Nxf7 {[%clk 0:00:06.7]} 52... h5 {[%clk 0:00:34.9]}
53. Ne5 {[%clk 0:00:05.6]} 53... Kd5 {[%clk 0:00:33.4]} 54. Nf3 {[%clk
0:00:02.3]} 54... Ke4 {[%clk 0:00:31.7]} 55. Ng5+ {[%clk 0:00:02.9]} 55... Kf4
{[%clk 0:00:29.6]} 56. Ne6+ {[%clk 0:00:03.2]} 56... Kg4 {[%clk 0:00:26.6]} 57.
Ng7 {[%clk 0:00:03.8]} 57... Kxh4 {[%clk 0:00:27.1]} 58. Nxh5 {[%clk 0:00:04.2]}
58... Kxh5 {[%clk 0:00:28]} 59. Kc3 {[%clk 0:00:05.1]} 59... Kg4 {[%clk
0:00:28.3]} 60. Kxc4 {[%clk 0:00:06]} 1/2-1/2

[Event "*** SCC Grand Prix: Titled Tuesday Blitz"]
[Site "Chess.com"]
[Date "2020.07.14"]
[Round "4"]
[White "xberli"]
[Black "Tsyhanchuk_Stanislav"]
[Result "1/2-1/2"]
[WhiteElo "2293"]
[BlackElo "2441"]
[TimeControl "180+1"]
[EndTime "10:40:24 PDT"]
[Termination "Game drawn - insufficient material"]

1. e4 {[%clk 0:03:00.9]} 1... c6 {[%clk 0:02:59.4]} 2. d4 {[%clk 0:03:00.4]}
2... d5 {[%clk 0:02:58.7]} 3. e5 {[%clk 0:03:00.8]} 3... c5 {[%clk 0:02:58.5]}
4. dxc5 {[%clk 0:03:01.7]} 4... e6 {[%clk 0:02:58.2]} 5. a3 {[%clk 0:03:01.1]}
5... Nd7 {[%clk 0:02:56.5]} 6. b4 {[%clk 0:02:58]} 6... Nxe5 {[%clk 0:02:54.7]}
7. Bb2 {[%clk 0:02:57.6]} 7... Qc7 {[%clk 0:02:51.4]} 8. Nf3 {[%clk 0:02:53.5]}
8... Nxf3+ {[%clk 0:02:49]} 9. Qxf3 {[%clk 0:02:54.4]} 9... Ne7 {[%clk
0:02:40.2]} 10. Nd2 {[%clk 0:02:43.6]} 10... b6 {[%clk 0:02:39]} 11. cxb6 {[%clk
0:02:35.9]} 11... axb6 {[%clk 0:02:39.9]} 12. Bd3 {[%clk 0:02:35.4]} 12... Ng6
{[%clk 0:02:34.4]} 13. O-O {[%clk 0:02:31.8]} 13... Bb7 {[%clk 0:02:22.7]} 14.
Rfe1 {[%clk 0:02:24.5]} 14... Rd8 {[%clk 0:02:03.9]} 15. Rac1 {[%clk 0:02:14.3]}
15... Qf4 {[%clk 0:01:48.4]} 16. Bxg6 {[%clk 0:01:43.4]} 16... Qxf3 {[%clk
0:01:44.1]} 17. Nxf3 {[%clk 0:01:44.3]} 17... hxg6 {[%clk 0:01:43.1]} 18. Bd4
{[%clk 0:01:44.8]} 18... b5 {[%clk 0:01:35.4]} 19. Bb6 {[%clk 0:01:44.6]} 19...
Rc8 {[%clk 0:01:30.5]} 20. Nd4 {[%clk 0:01:43.2]} 20... Bd6 {[%clk 0:01:25.8]}
21. Nxb5 {[%clk 0:01:34.2]} 21... Bxh2+ {[%clk 0:01:24]} 22. Kf1 {[%clk
0:01:34.4]} 22... Ba6 {[%clk 0:01:20.6]} 23. a4 {[%clk 0:01:33.7]} 23... Bf4
{[%clk 0:01:16.1]} 24. Be3 {[%clk 0:01:31]} 24... Bxe3 {[%clk 0:01:14.2]} 25.
fxe3 {[%clk 0:01:30.9]} 25... Bxb5+ {[%clk 0:00:56.4]} 26. axb5 {[%clk
0:01:31.8]} 26... Rc4 {[%clk 0:00:56.2]} 27. Ke2 {[%clk 0:01:22]} 27... Rh2
{[%clk 0:00:53.1]} 28. Rg1 {[%clk 0:01:03]} 28... Kd7 {[%clk 0:00:47.5]} 29. Kd3
{[%clk 0:00:59.9]} 29... Kc7 {[%clk 0:00:41.2]} 30. c3 {[%clk 0:00:59.6]} 30...
Kb6 {[%clk 0:00:40.2]} 31. Ra1 {[%clk 0:00:59.3]} 31... Rh8 {[%clk 0:00:29.8]}
32. Ra6+ {[%clk 0:00:57.5]} 32... Kxb5 {[%clk 0:00:29.3]} 33. Ra7 {[%clk
0:00:57.4]} 33... Rhc8 {[%clk 0:00:18]} 34. Rc1 {[%clk 0:00:46.2]} 34... R8c7
{[%clk 0:00:16.9]} 35. Rxc7 {[%clk 0:00:41.5]} 35... Rxc7 {[%clk 0:00:16.5]} 36.
Ra1 {[%clk 0:00:42.4]} 36... e5 {[%clk 0:00:12.8]} 37. g4 {[%clk 0:00:39.8]}
37... e4+ {[%clk 0:00:12.7]} 38. Kd4 {[%clk 0:00:30.3]} 38... Rc4+ {[%clk
0:00:11.7]} 39. Kxd5 {[%clk 0:00:30.4]} 39... Rxc3 {[%clk 0:00:12.2]} 40. Kxe4
{[%clk 0:00:24.7]} 40... Kxb4 {[%clk 0:00:11.1]} 41. Ra7 {[%clk 0:00:23.5]}
41... Rc4+ {[%clk 0:00:10.9]} 42. Kf3 {[%clk 0:00:23.5]} 42... f5 {[%clk
0:00:10.3]} 43. g5 {[%clk 0:00:18.8]} 43... Rg4 {[%clk 0:00:09.3]} 44. Rxg7
{[%clk 0:00:17.7]} 44... Rxg5 {[%clk 0:00:09.3]} 45. Kf4 {[%clk 0:00:17.6]}
45... Rg4+ {[%clk 0:00:09.3]} 46. Kf3 {[%clk 0:00:17.7]} 46... Kc3 {[%clk
0:00:09.3]} 47. Rd7 {[%clk 0:00:17.7]} 47... Re4 {[%clk 0:00:08.5]} 48. Rd5
{[%clk 0:00:16.3]} 48... Re6 {[%clk 0:00:08]} 49. Kf4 {[%clk 0:00:15.7]} 49...
Kc4 {[%clk 0:00:08.1]} 50. Rd8 {[%clk 0:00:15.5]} 50... Kc5 {[%clk 0:00:06.9]}
51. Rd7 {[%clk 0:00:14.8]} 51... Rd6 {[%clk 0:00:06.9]} 52. Re7 {[%clk
0:00:12.1]} 52... Kd5 {[%clk 0:00:06.4]} 53. Re5+ {[%clk 0:00:11.4]} 53... Kc4
{[%clk 0:00:06]} 54. Kg5 {[%clk 0:00:11.2]} 54... Kd3 {[%clk 0:00:05.9]} 55. Kf4
{[%clk 0:00:10.8]} 55... Ke2 {[%clk 0:00:06]} 56. Re7 {[%clk 0:00:10.1]} 56...
Kf2 {[%clk 0:00:06]} 57. e4 {[%clk 0:00:09.6]} 57... fxe4 {[%clk 0:00:05.6]} 58.
Rxe4 {[%clk 0:00:10.5]} 58... Rf6+ {[%clk 0:00:05.7]} 59. Kg5 {[%clk 0:00:10.6]}
59... Rf3 {[%clk 0:00:05.2]} 60. Kxg6 {[%clk 0:00:10]} 60... Rg3+ {[%clk
0:00:04.8]} 61. Kf5 {[%clk 0:00:09.3]} 61... Rf3+ {[%clk 0:00:05.7]} 62. Rf4
{[%clk 0:00:09.5]} 62... Rxf4+ {[%clk 0:00:05.9]} 63. Kxf4 {[%clk 0:00:10.4]}
1/2-1/2

[Event "*** SCC Grand Prix: Titled Tuesday Blitz"]
[Site "Chess.com"]
[Date "2020.07.14"]
[Round "4"]
[White "FontVella8"]
[Black "dpopadic"]
[Result "1-0"]
[WhiteElo "2508"]
[BlackElo "2330"]
[TimeControl "180+1"]
[EndTime "10:40:25 PDT"]
[Termination "FontVella8 won on time"]

1. b3 {[%clk 0:03:00.9]} 1... d6 {[%clk 0:02:59]} 2. Bb2 {[%clk 0:03:01.3]} 2...
Nd7 {[%clk 0:02:59.4]} 3. Nf3 {[%clk 0:03:01.8]} 3... Ngf6 {[%clk 0:02:59.2]} 4.
e3 {[%clk 0:03:01.7]} 4... g6 {[%clk 0:02:59.2]} 5. d4 {[%clk 0:03:01.5]} 5...
Bg7 {[%clk 0:02:59.3]} 6. c4 {[%clk 0:03:01.5]} 6... O-O {[%clk 0:02:58.2]} 7.
Nbd2 {[%clk 0:03:02]} 7... c5 {[%clk 0:02:57.5]} 8. g3 {[%clk 0:02:59.5]} 8...
e6 {[%clk 0:02:57.5]} 9. Bg2 {[%clk 0:02:59.7]} 9... Rb8 {[%clk 0:02:55.7]} 10.
O-O {[%clk 0:02:47]} 10... b6 {[%clk 0:02:55.9]} 11. Qc2 {[%clk 0:02:44.2]}
11... Bb7 {[%clk 0:02:55.5]} 12. Rfd1 {[%clk 0:02:43.8]} 12... Qe7 {[%clk
0:02:51.7]} 13. a3 {[%clk 0:02:41.3]} 13... Rfc8 {[%clk 0:02:51.2]} 14. h3
{[%clk 0:02:35.8]} 14... h6 {[%clk 0:02:38.4]} 15. Rac1 {[%clk 0:02:34.2]} 15...
Nf8 {[%clk 0:02:37.6]} 16. Qb1 {[%clk 0:02:31.8]} 16... Ne8 {[%clk 0:02:34.8]}
17. Qa1 {[%clk 0:02:26.7]} 17... Nh7 {[%clk 0:02:33.1]} 18. b4 {[%clk
0:02:24.2]} 18... cxd4 {[%clk 0:02:30.6]} 19. Bxd4 {[%clk 0:02:20.8]} 19... Bxd4
{[%clk 0:02:29.3]} 20. Qxd4 {[%clk 0:02:20.7]} 20... Nhf6 {[%clk 0:02:21]} 21.
Nb1 {[%clk 0:01:50.1]} 21... Ne4 {[%clk 0:01:51.9]} 22. Nh4 {[%clk 0:01:24]}
22... N4f6 {[%clk 0:01:50.2]} 23. Nc3 {[%clk 0:01:21.1]} 23... Bxg2 {[%clk
0:01:48]} 24. Nxg2 {[%clk 0:01:21.2]} 24... a6 {[%clk 0:01:45.7]} 25. e4 {[%clk
0:01:19.1]} 25... Qc7 {[%clk 0:01:42.6]} 26. Ne3 {[%clk 0:01:18.5]} 26... Qb7
{[%clk 0:01:36.8]} 27. f4 {[%clk 0:01:12.5]} 27... b5 {[%clk 0:01:19.9]} 28. e5
{[%clk 0:00:53.8]} 28... dxe5 {[%clk 0:01:17.1]} 29. fxe5 {[%clk 0:00:54.7]}
29... Nh5 {[%clk 0:01:16.5]} 30. Ne4 {[%clk 0:00:54.9]} 30... bxc4 {[%clk
0:01:10.4]} 31. Rxc4 {[%clk 0:00:48.1]} 31... Rxc4 {[%clk 0:01:09.4]} 32. Nxc4
{[%clk 0:00:48.4]} 32... Qb5 {[%clk 0:00:58.9]} 33. Rf1 {[%clk 0:00:22.3]} 33...
Qb7 {[%clk 0:00:47.3]} 34. g4 {[%clk 0:00:20.7]} 34... Nhg7 {[%clk 0:00:45.9]}
35. Ned6 {[%clk 0:00:20]} 35... Nxd6 {[%clk 0:00:44.9]} 36. Nxd6 {[%clk
0:00:20.3]} 36... Rd8 {[%clk 0:00:41]} 37. Qf4 {[%clk 0:00:17.2]} 37... Qb6+
{[%clk 0:00:38.5]} 38. Kh2 {[%clk 0:00:14.4]} 38... Rf8 {[%clk 0:00:36.8]} 39.
Nxf7 {[%clk 0:00:10.3]} 39... Nf5 {[%clk 0:00:29.2]} 40. Nxh6+ {[%clk
0:00:08.9]} 40... Kg7 {[%clk 0:00:28.6]} 41. gxf5 {[%clk 0:00:06.9]} 41... exf5
{[%clk 0:00:28.4]} 42. Ng4 {[%clk 0:00:05.5]} 42... Rc8 {[%clk 0:00:20.7]} 43.
Ne3 {[%clk 0:00:05.4]} 43... Rc3 {[%clk 0:00:16.1]} 44. Rf3 {[%clk 0:00:04.2]}
44... Qc6 {[%clk 0:00:13.8]} 45. Rg3 {[%clk 0:00:03.4]} 45... Kf7 {[%clk
0:00:09.8]} 46. Nxf5 {[%clk 0:00:03.7]} 46... gxf5 {[%clk 0:00:09.4]} 47. Qxf5+
{[%clk 0:00:04]} 47... Ke7 {[%clk 0:00:06.1]} 48. Rg7+ {[%clk 0:00:04]} 48...
Kd8 {[%clk 0:00:06.2]} 49. Qf8+ {[%clk 0:00:04.1]} 49... Qe8 {[%clk 0:00:05.3]}
50. Qxe8+ {[%clk 0:00:02.9]} 50... Kxe8 {[%clk 0:00:05.1]} 51. h4 {[%clk
0:00:02.6]} 51... Rxa3 {[%clk 0:00:05.2]} 52. h5 {[%clk 0:00:02.7]} 52... Re3
{[%clk 0:00:04.9]} 53. h6 {[%clk 0:00:02.7]} 53... Kf8 {[%clk 0:00:04.3]} 54.
Rg5 {[%clk 0:00:02.1]} 54... Re4 {[%clk 0:00:02.2]} 55. Kg3 {[%clk 0:00:02]} 1-0

[Event "*** SCC Grand Prix: Titled Tuesday Blitz"]
[Site "Chess.com"]
[Date "2020.07.14"]
[Round "4"]
[White "Denmark2015"]
[Black "qingaunlee"]
[Result "1-0"]
[WhiteElo "2580"]
[BlackElo "2349"]
[TimeControl "180+1"]
[EndTime "10:40:26 PDT"]
[Termination "Denmark2015 won by resignation"]

1. d4 {[%clk 0:03:00.9]} 1... Nf6 {[%clk 0:02:58.8]} 2. c4 {[%clk 0:03:00.7]}
2... c5 {[%clk 0:02:58.3]} 3. d5 {[%clk 0:03:00.8]} 3... b5 {[%clk 0:02:58.3]}
4. cxb5 {[%clk 0:03:01.1]} 4... a6 {[%clk 0:02:58.4]} 5. b6 {[%clk 0:03:01.4]}
5... Qxb6 {[%clk 0:02:57.9]} 6. Nc3 {[%clk 0:03:02.3]} 6... Bb7 {[%clk
0:02:57.7]} 7. e4 {[%clk 0:03:00.1]} 7... e6 {[%clk 0:02:57.8]} 8. Bc4 {[%clk
0:02:29.4]} 8... Be7 {[%clk 0:02:44.7]} 9. Nf3 {[%clk 0:02:27.9]} 9... O-O
{[%clk 0:02:42.6]} 10. O-O {[%clk 0:02:27.5]} 10... exd5 {[%clk 0:02:34.5]} 11.
exd5 {[%clk 0:02:19.7]} 11... d6 {[%clk 0:02:27.7]} 12. b3 {[%clk 0:02:10.3]}
12... Nbd7 {[%clk 0:02:24.6]} 13. Re1 {[%clk 0:02:06.5]} 13... Rfe8 {[%clk
0:02:24.3]} 14. h3 {[%clk 0:02:04.4]} 14... Qc7 {[%clk 0:01:47.3]} 15. Bf4
{[%clk 0:02:03]} 15... Nh5 {[%clk 0:01:44.6]} 16. Bh2 {[%clk 0:02:01.2]} 16...
g6 {[%clk 0:01:35.4]} 17. Qd2 {[%clk 0:01:56.8]} 17... Ng7 {[%clk 0:01:34]} 18.
Ne4 {[%clk 0:01:44.3]} 18... Rad8 {[%clk 0:00:59]} 19. Qf4 {[%clk 0:01:39.1]}
19... Nb6 {[%clk 0:00:48.9]} 20. Nf6+ {[%clk 0:01:32.6]} 20... Bxf6 {[%clk
0:00:48.2]} 21. Qxf6 {[%clk 0:01:33.5]} 21... Rxe1+ {[%clk 0:00:46.2]} 22. Rxe1
{[%clk 0:01:32.6]} 22... Nxd5 {[%clk 0:00:44.9]} 23. Bxd5 {[%clk 0:00:51.9]}
23... Bxd5 {[%clk 0:00:45.8]} 24. Ng5 {[%clk 0:00:37.4]} 24... Nh5 {[%clk
0:00:42.8]} 25. Qc3 {[%clk 0:00:30.3]} 25... h6 {[%clk 0:00:42.5]} 26. Ne4
{[%clk 0:00:25.6]} 26... Qc6 {[%clk 0:00:40.7]} 27. Nf6+ {[%clk 0:00:14.9]}
27... Nxf6 {[%clk 0:00:40.4]} 28. Qxf6 {[%clk 0:00:15.4]} 28... Re8 {[%clk
0:00:35.8]} 29. Rxe8+ {[%clk 0:00:13.9]} 29... Qxe8 {[%clk 0:00:35.4]} 30. Bxd6
{[%clk 0:00:14.6]} 30... Qe1+ {[%clk 0:00:34.9]} 31. Kh2 {[%clk 0:00:14.9]}
31... Qe4 {[%clk 0:00:34.9]} 32. f3 {[%clk 0:00:15.2]} 32... Qe6 {[%clk
0:00:25.2]} 33. Qxe6 {[%clk 0:00:12.3]} 33... Bxe6 {[%clk 0:00:24.5]} 34. Bxc5
{[%clk 0:00:13.2]} 34... Kg7 {[%clk 0:00:24.6]} 35. Kg3 {[%clk 0:00:13.7]} 35...
Kf6 {[%clk 0:00:24.7]} 36. Kf4 {[%clk 0:00:14.4]} 36... g5+ {[%clk 0:00:23.2]}
37. Ke4 {[%clk 0:00:14.8]} 37... h5 {[%clk 0:00:23.1]} 38. Bf2 {[%clk
0:00:13.9]} 38... g4 {[%clk 0:00:21.8]} 39. fxg4 {[%clk 0:00:13.3]} 39... hxg4
{[%clk 0:00:21.9]} 40. h4 {[%clk 0:00:14]} 40... Kg6 {[%clk 0:00:22]} 41. g3
{[%clk 0:00:14.3]} 41... a5 {[%clk 0:00:20.3]} 42. Be1 {[%clk 0:00:09.9]} 42...
a4 {[%clk 0:00:19.9]} 43. bxa4 {[%clk 0:00:10.2]} 43... Bxa2 {[%clk 0:00:19.9]}
44. a5 {[%clk 0:00:11.1]} 44... Bc4 {[%clk 0:00:19.8]} 45. Kd4 {[%clk
0:00:11.3]} 45... Be2 {[%clk 0:00:19.5]} 46. Kc5 {[%clk 0:00:11.1]} 46... Ba6
{[%clk 0:00:17.6]} 47. Kb6 {[%clk 0:00:10.6]} 47... Be2 {[%clk 0:00:17.9]} 48.
a6 {[%clk 0:00:10.8]} 48... Bxa6 {[%clk 0:00:18]} 49. Kxa6 {[%clk 0:00:10.9]}
49... f5 {[%clk 0:00:17.5]} 50. Bd2 {[%clk 0:00:11.5]} 50... Kf6 {[%clk
0:00:16.7]} 51. Bf4 {[%clk 0:00:12.4]} 51... Kg6 {[%clk 0:00:16.7]} 52. Kb5
{[%clk 0:00:13.3]} 52... Kh5 {[%clk 0:00:17.1]} 53. Kc6 {[%clk 0:00:14.2]} 53...
Kg6 {[%clk 0:00:17.6]} 54. Kd5 {[%clk 0:00:15.1]} 54... Kh5 {[%clk 0:00:18.1]}
55. Ke6 {[%clk 0:00:15.5]} 55... Kg6 {[%clk 0:00:18.4]} 56. Ke5 {[%clk
0:00:15.4]} 56... Kh5 {[%clk 0:00:18.7]} 57. Bg5 {[%clk 0:00:15.4]} 57... Kg6
{[%clk 0:00:18.5]} 58. Kf4 {[%clk 0:00:15.4]} 58... Kh5 {[%clk 0:00:18.8]} 59.
Bd8 {[%clk 0:00:15.1]} 59... Kg6 {[%clk 0:00:19.1]} 60. Ba5 {[%clk 0:00:15.5]}
60... Kf6 {[%clk 0:00:18.4]} 61. Bc3+ {[%clk 0:00:15]} 61... Kg6 {[%clk
0:00:18.6]} 62. h5+ {[%clk 0:00:13.8]} 62... Kxh5 {[%clk 0:00:17.3]} 63. Kxf5
{[%clk 0:00:14.3]} 63... Kh6 {[%clk 0:00:17.8]} 64. Kxg4 {[%clk 0:00:14.9]}
64... Kg6 {[%clk 0:00:18.4]} 65. Be1 {[%clk 0:00:14.2]} 65... Kf7 {[%clk
0:00:18.5]} 66. Kg5 {[%clk 0:00:14.5]} 66... Kg8 {[%clk 0:00:19.4]} 67. g4
{[%clk 0:00:15.1]} 67... Kh7 {[%clk 0:00:19.8]} 68. Kf6 {[%clk 0:00:15.4]} 68...
Kg8 {[%clk 0:00:20.3]} 69. g5 {[%clk 0:00:15.9]} 69... Kf8 {[%clk 0:00:20.2]}
70. g6 {[%clk 0:00:16.1]} 70... Kg8 {[%clk 0:00:20.9]} 71. g7 {[%clk 0:00:16]}
71... Kh7 {[%clk 0:00:21.8]} 72. Kf7 {[%clk 0:00:16.3]} 72... Kh6 {[%clk
0:00:21.1]} 73. g8=Q {[%clk 0:00:16.2]} 1-0

[Event "*** SCC Grand Prix: Titled Tuesday Blitz"]
[Site "Chess.com"]
[Date "2020.07.14"]
[Round "4"]
[White "anon132639"]
[Black "Parkas"]
[Result "0-1"]
[WhiteElo "2670"]
[BlackElo "2354"]
[TimeControl "180+1"]
[EndTime "10:40:26 PDT"]
[Termination "Parkas won by resignation"]

1. d4 {[%clk 0:03:00.9]} 1... g6 {[%clk 0:02:59.8]} 2. c4 {[%clk 0:02:58.5]}
2... Bg7 {[%clk 0:02:59.9]} 3. Nf3 {[%clk 0:02:59.4]} 3... d6 {[%clk 0:03:00]}
4. Nc3 {[%clk 0:02:59.8]} 4... e5 {[%clk 0:03:00.1]} 5. e4 {[%clk 0:03:00.4]}
5... Nc6 {[%clk 0:02:48.8]} 6. Be3 {[%clk 0:02:59.2]} 6... exd4 {[%clk
0:02:39.9]} 7. Nxd4 {[%clk 0:03:00.1]} 7... Nge7 {[%clk 0:02:40.6]} 8. Be2
{[%clk 0:02:59.4]} 8... O-O {[%clk 0:02:36.3]} 9. O-O {[%clk 0:02:59.2]} 9... f5
{[%clk 0:02:35.8]} 10. exf5 {[%clk 0:02:58.5]} 10... Nxf5 {[%clk 0:02:28.1]} 11.
Nxf5 {[%clk 0:02:56.7]} 11... Bxf5 {[%clk 0:02:27.2]} 12. c5 {[%clk 0:02:41.3]}
12... dxc5 {[%clk 0:01:54.9]} 13. Bxc5 {[%clk 0:02:39.8]} 13... Qxd1 {[%clk
0:01:44]} 14. Raxd1 {[%clk 0:02:40.7]} 14... Rfe8 {[%clk 0:01:12.4]} 15. Bc4+
{[%clk 0:02:39.5]} 15... Be6 {[%clk 0:01:09.5]} 16. Bxe6+ {[%clk 0:02:38.3]}
16... Rxe6 {[%clk 0:01:09]} 17. Nd5 {[%clk 0:02:38.1]} 17... Rc8 {[%clk
0:01:04.1]} 18. Rfe1 {[%clk 0:02:36.4]} 18... Kf7 {[%clk 0:00:58.5]} 19. Rxe6
{[%clk 0:02:31.2]} 19... Kxe6 {[%clk 0:00:58.6]} 20. Nf4+ {[%clk 0:02:30.9]}
20... Kf5 {[%clk 0:00:39.3]} 21. g3 {[%clk 0:02:30.1]} 21... Rd8 {[%clk
0:00:36]} 22. Rxd8 {[%clk 0:02:26.1]} 22... Nxd8 {[%clk 0:00:36.9]} 23. b3
{[%clk 0:02:26.6]} 23... b6 {[%clk 0:00:34.3]} 24. Be3 {[%clk 0:02:24.3]} 24...
Ne6 {[%clk 0:00:24.5]} 25. Nd3 {[%clk 0:02:21.2]} 25... Ke4 {[%clk 0:00:23.3]}
26. Ne1 {[%clk 0:02:15.8]} 26... Bd4 {[%clk 0:00:20.6]} 27. Bd2 {[%clk
0:02:16.2]} 27... b5 {[%clk 0:00:19.9]} 28. Kf1 {[%clk 0:02:16.1]} 28... c5
{[%clk 0:00:19.4]} 29. f3+ {[%clk 0:02:15.9]} 29... Kd5 {[%clk 0:00:18.7]} 30.
Ke2 {[%clk 0:02:16.1]} 30... c4 {[%clk 0:00:18.9]} 31. bxc4+ {[%clk 0:02:17]}
31... bxc4 {[%clk 0:00:19.8]} 32. Nc2 {[%clk 0:02:15.3]} 32... c3 {[%clk
0:00:15.7]} 33. Be1 {[%clk 0:02:15.3]} 33... Kc4 {[%clk 0:00:14.6]} 34. f4
{[%clk 0:02:14.3]} 34... h5 {[%clk 0:00:12]} 35. h3 {[%clk 0:02:13.4]} 35... a6
{[%clk 0:00:11.7]} 36. Na3+ {[%clk 0:02:07.6]} 36... Kb4 {[%clk 0:00:11.4]} 37.
Nc2+ {[%clk 0:02:05.3]} 37... Kc4 {[%clk 0:00:11.9]} 38. Na1 {[%clk 0:01:50.4]}
38... Bc5 {[%clk 0:00:10]} 39. Nc2 {[%clk 0:01:12.5]} 39... a5 {[%clk
0:00:09.3]} 40. Kd1 {[%clk 0:00:45.3]} 40... a4 {[%clk 0:00:08.3]} 41. Ke2
{[%clk 0:00:43.4]} 41... Nc7 {[%clk 0:00:04.9]} 42. g4 {[%clk 0:00:42.7]} 42...
Ne6 {[%clk 0:00:04.1]} 43. f5 {[%clk 0:00:38.9]} 43... gxf5 {[%clk 0:00:04.6]}
44. gxf5 {[%clk 0:00:39.8]} 44... Nf4+ {[%clk 0:00:05.2]} 45. Kf3 {[%clk
0:00:37.6]} 45... Nxh3 {[%clk 0:00:05.7]} 46. f6 {[%clk 0:00:32.5]} 46... Kd3
{[%clk 0:00:05.7]} 47. Na1 {[%clk 0:00:30.5]} 47... c2 {[%clk 0:00:05.5]} 48.
Nxc2 {[%clk 0:00:29.9]} 48... Kxc2 {[%clk 0:00:06.4]} 49. Ke4 {[%clk 0:00:28.3]}
49... Kb2 {[%clk 0:00:05.7]} 50. Kd5 {[%clk 0:00:28.8]} 50... Bf8 {[%clk
0:00:05.9]} 51. Bg3 {[%clk 0:00:22.8]} 51... Kxa2 {[%clk 0:00:06]} 52. Bd6
{[%clk 0:00:22]} 52... Bxd6 {[%clk 0:00:06]} 53. Kxd6 {[%clk 0:00:22.9]} 53...
Ng5 {[%clk 0:00:05.6]} 54. Ke5 {[%clk 0:00:22.4]} 54... a3 {[%clk 0:00:05.4]}
55. Kf5 {[%clk 0:00:23.3]} 55... Nh7 {[%clk 0:00:05.1]} 56. f7 {[%clk
0:00:22.9]} 56... Kb2 {[%clk 0:00:05.3]} 57. Kg6 {[%clk 0:00:23.2]} 57... Nf8+
{[%clk 0:00:05.7]} 58. Kg7 {[%clk 0:00:23.7]} 58... Nd7 {[%clk 0:00:05.3]} 59.
Kg6 {[%clk 0:00:22]} 59... a2 {[%clk 0:00:05.3]} 60. f8=Q {[%clk 0:00:22.6]}
60... Nxf8+ {[%clk 0:00:05.4]} 0-1